bitfinex-derivatives/quotes_BTCF0:USTF0_20241223
["timestamp","ask_amount","ask_price","bid_price","bid_amount"]
[1734990140681,0.053215,94085.0,94081.0,0.1137]
[1734990140985,0.006,94088.0,94081.0,0.0397]
[1734990141683,0.006,94088.0,94081.0,0.09347911]
[1734990142483,0.006,94088.0,94085.0,0.053214]
[1734990142789,0.006,94088.0,94087.0,0.3608]
[1734990142998,0.002,94088.0,94087.0,0.3608]
[1734990143197,0.005,94088.0,94087.0,0.3608]
[1734990143505,0.002,94088.0,94087.0,0.414014]
[1734990143681,0.3608,94114.0,94100.0,0.053206]
[1734990143886,0.3608,94114.0,94101.0,0.053205]
[1734990144087,0.3608,94114.0,94101.0,0.1108]
[1734990144280,0.3608,94114.0,94103.0,0.053204]
[1734990144684,0.3618,94114.0,94101.0,0.1108]
[1734990145088,0.001,94114.0,94109.0,0.053201]
[1734990145386,0.001,94114.0,94111.0,0.3608]
[1734990145895,0.001,94114.0,94111.0,0.2868]
[1734990146088,0.002,94114.0,94109.0,0.053201]
[1734990146484,0.002,94114.0,94101.0,0.1108]
[1734990146686,0.3628,94114.0,94101.0,0.16529156]
[1734990146888,0.005,94114.0,94101.0,0.16529156]
[1734990147401,0.003,94114.0,94105.0,0.053203]
[1734990147582,0.003,94114.0,94101.0,0.52609156]
[1734990147583,0.005,94114.0,94101.0,0.52609156]
[1734990147785,0.005,94114.0,94101.0,0.82609156]
[1734990147983,0.001,94114.0,94101.0,0.82609156]
[1734990148185,0.002,94114.0,94101.0,0.82609156]
[1734990148582,0.002,94114.0,94110.0,0.0532]
[1734990149996,0.006,94114.0,94110.0,0.0532]
[1734990150299,0.008,94114.0,94110.0,0.0532]
[1734990151399,0.008,94114.0,94103.0,0.053204]
[1734990151697,0.008,94114.0,94104.0,0.053204]
[1734990152598,0.006,94114.0,94104.0,0.053204]
[1734990153099,0.003,94114.0,94106.0,0.053203]
[1734990153299,0.004,94114.0,94107.0,0.1184]
[1734990154198,0.002,94114.0,94107.0,0.1184]
[1734990154400,0.005,94114.0,94107.0,0.1184]
[1734990154597,0.005,94114.0,94110.0,0.0532]
[1734990155198,0.003,94114.0,94111.0,0.3608]
[1734990155393,0.413987,94134.0,94122.0,0.053193]
[1734990155595,0.3608,94134.0,94111.0,0.3608]
[1734990155802,0.002,94114.0,94111.0,0.3608]
[1734990156000,0.053202,94108.0,94107.0,0.0444]
[1734990156303,0.053205,94102.0,94101.0,0.05449156]
[1734990156492,0.053208,94098.0,94092.0,0.3608]
[1734990156897,0.053208,94098.0,94092.0,0.41533035]
[1734990157596,0.3608,94102.0,94092.0,0.41733035]
[1734990157902,0.3608,94102.0,94094.0,0.053209]
[1734990158292,0.3608,94102.0,94095.0,0.053209]
[1734990160000,0.3608,94102.0,94095.0,0.054209]
[1734990160395,0.3618,94102.0,94095.0,0.053209]
[1734990160593,0.3628,94102.0,94101.0,0.053206]
[1734990160791,0.002,94102.0,94101.0,0.414006]
[1734990160988,0.002,94102.0,94101.0,0.340006]
[1734990161194,0.3608,94120.0,94102.0,0.053205]
[1734990161502,0.3608,94120.0,94111.0,0.0532]
[1734990162905,0.3688,94120.0,94111.0,0.0542]
[1734990163598,0.3658,94120.0,94111.0,0.0542]
[1734990163796,0.3688,94120.0,94111.0,0.0542]
[1734990164000,0.3688,94120.0,94114.0,0.053198]
[1734990164194,0.3688,94120.0,94111.0,0.001]
[1734990164390,0.008,94120.0,94118.0,0.053196]
[1734990164600,1e-08,94120.0,94118.0,0.053196]
[1734990165301,0.45580992,94132.0,94121.0,0.053194]
[1734990166303,0.45580992,94132.0,94122.0,0.053194]
[1734990167002,0.3608,94132.0,94124.0,0.3608]
[1734990167201,0.3608,94132.0,94125.0,0.053192]
[1734990167604,0.3608,94132.0,94124.0,0.3608]
[1734990168507,0.3608,94132.0,94131.0,0.053189]
[1734990169298,0.3608,94143.0,94140.0,0.053184]
[1734990169499,0.09500992,94145.0,94140.0,0.053184]
[1734990169708,0.09500992,94145.0,94141.0,0.053183]
[1734990170006,0.3608,94154.0,94133.0,0.08881154]
[1734990170007,0.09500992,94148.0,94133.0,0.44961154]
[1734990170199,0.09500992,94148.0,94144.0,0.053181]
[1734990170600,0.09500992,94148.0,94146.0,0.05318]
[1734990171109,0.09500992,94148.0,94140.0,0.06799154]
[1734990171308,0.36144,94154.0,94140.0,0.06799154]
[1734990171502,0.3608,94154.0,94141.0,0.3608]
[1734990172206,0.006,94143.0,94141.0,0.3608]
[1734990172706,0.009,94154.0,94142.0,0.053182]
[1734990172902,0.009,94154.0,94151.0,0.3608]
[1734990173312,0.09500992,94159.0,94151.0,0.3608]
[1734990174313,0.007,94154.0,94151.0,0.3608]
[1734990175208,0.012,94154.0,94153.0,0.053176]
[1734990176114,0.005,94154.0,94151.0,0.341976]
[1734990176603,0.005,94154.0,94153.0,0.054176]
[1734990176808,0.005,94154.0,94153.0,0.001]
[1734990177304,0.005,94154.0,94153.0,0.002]
[1734990177513,0.014,94154.0,94153.0,0.002]
[1734990178705,0.014,94154.0,94153.0,0.001]
[1734990179502,0.014,94154.0,94153.0,0.002]
[1734990181025,0.014,94154.0,94151.0,0.37539928]
[1734990181219,0.014,94154.0,94152.0,0.053177]
[1734990182107,0.009,94154.0,94151.0,0.05420628]
[1734990182417,0.009,94154.0,94131.0,0.25051481]
[1734990182418,0.053184,94139.0,94131.0,0.25051481]
[1734990182608,0.3608,94141.0,94131.0,0.25051481]
[1734990182805,0.3608,94153.0,94143.0,0.053182]
[1734990183015,0.3608,94153.0,94152.0,0.001]
[1734990183408,0.413976,94153.0,94152.0,0.001]
[1734990184013,0.781776,94153.0,94152.0,0.001]
[1734990184809,0.053181,94145.0,94143.0,0.001]
[1734990185119,0.3608,94144.0,94143.0,0.001]
[1734990186216,0.3608,94144.0,94138.0,0.053185]
[1734990186413,0.053183,94142.0,94138.0,0.053185]
[1734990186718,0.053184,94140.0,94138.0,0.10522669]
[1734990187425,0.1154,94143.0,94141.0,0.053183]
[1734990188320,0.1154,94143.0,94130.0,0.08881154]
[1734990188612,0.1154,94143.0,94140.0,0.053184]
[1734990189119,0.1194,94143.0,94133.0,0.053187]
[1734990189311,0.1194,94143.0,94130.0,0.08881154]
[1734990189619,0.1194,94143.0,94135.0,0.053186]
[1734990189814,0.1244,94143.0,94141.0,0.001]
[1734990190014,0.1184,94143.0,94135.0,0.053186]
[1734990190223,0.1244,94143.0,94140.0,0.001]
[1734990190825,0.1224,94143.0,94130.0,0.08881154]
[1734990191028,0.1224,94143.0,94137.0,0.053185]
[1734990191619,0.1194,94143.0,94137.0,0.053185]
[1734990191819,0.053183,94142.0,94131.0,0.053189]
[1734990192020,0.053183,94142.0,94130.0,0.08881154]
[1734990192629,0.053183,94142.0,94140.0,0.001]
[1734990193029,0.055183,94142.0,94131.0,0.053189]
[1734990193229,0.055183,94142.0,94132.0,0.053188]
[1734990193431,0.055183,94142.0,94133.0,0.053187]
[1734990193933,0.09500992,94140.0,94133.0,0.053187]
[1734990194127,0.09500992,94140.0,94135.0,0.053186]
[1734990194834,0.053192,94125.0,94124.0,0.04455804]
[1734990195026,0.053192,94125.0,94103.0,0.1113]
[1734990195027,0.3608,94125.0,94118.0,0.25051481]
[1734990195622,0.3608,94125.0,94124.0,0.053193]
[1734990196335,0.28635943,94125.0,94124.0,0.053193]
[1734990196931,0.26580943,94125.0,94124.0,0.053193]
[1734990197126,0.09500992,94129.0,94128.0,0.05319]
[1734990197331,0.08900992,94129.0,94128.0,0.05319]
[1734990197637,0.3608,94145.0,94132.0,0.053188]
[1734990197638,0.48790887,94145.0,94132.0,0.053188]
[1734990197824,0.48790887,94145.0,94133.0,0.413987]
[1734990198025,0.48790887,94145.0,94134.0,0.053187]
[1734990198728,0.3608,94145.0,94134.0,0.053187]
[1734990199323,0.3628,94145.0,94134.0,0.053187]
[1734990199540,0.3628,94145.0,94133.0,0.3608]
[1734990199831,0.001,94129.0,94128.0,0.25051481]
[1734990200222,0.053186,94135.0,94128.0,0.25051481]
[1734990201642,0.053186,94135.0,94125.0,0.2366]
[1734990201643,0.3658,94145.0,94125.0,0.2366]
[1734990201839,0.05319,94130.0,94125.0,0.1173]
[1734990202536,0.3608,94128.0,94124.0,0.0449811]
[1734990202737,0.053192,94125.0,94123.0,0.25051481]
[1734990202933,0.053194,94122.0,94117.0,0.25051481]
[1734990203437,0.3608,94128.0,94117.0,0.25051481]
[1734990203640,0.053196,94119.0,94117.0,0.25051481]
[1734990204234,0.3541,94134.0,94118.0,0.3608]
[1734990204537,0.3608,94128.0,94120.0,0.053195]
[1734990204746,0.053192,94126.0,94120.0,0.053195]
[1734990206234,0.054192,94126.0,94120.0,0.053195]
[1734990206536,0.001,94126.0,94124.0,0.053192]
[1734990207039,0.10282567,94134.0,94133.0,0.053188]
[1734990207242,0.09582567,94135.0,94133.0,0.413988]
[1734990207433,0.09582567,94135.0,94134.0,0.1099]
[1734990208540,0.1204,94154.0,94153.0,0.053176]
[1734990208742,0.15937681,94158.0,94154.0,0.053175]
[1734990208938,0.15937681,94158.0,94153.0,0.053176]
[1734990209137,0.15937681,94158.0,94154.0,0.053176]
[1734990209936,0.3608,94167.0,94154.0,0.053176]
[1734990210837,0.053176,94155.0,94153.0,0.002]
[1734990211055,0.053176,94155.0,94142.0,0.053182]
[1734990211237,0.053176,94155.0,94154.0,0.001]
[1734990211436,0.053176,94155.0,94154.0,0.002]
[1734990212145,0.053176,94155.0,94154.0,0.001]
[1734990212339,0.01,94155.0,94142.0,0.001]
[1734990212540,0.053178,94150.0,94142.0,0.054182]
[1734990213249,0.1174,94149.0,94142.0,0.054182]
[1734990213441,0.053179,94148.0,94142.0,0.001]
[1734990213646,0.1174,94149.0,94142.0,0.001]
[1734990213848,0.1174,94149.0,94140.0,0.08881154]
[1734990214549,0.1244,94149.0,94142.0,0.001]
[1734990214947,0.1244,94149.0,94140.0,0.13283589]
[1734990215248,0.1234,94149.0,94140.0,0.13383589]
[1734990215449,0.1264,94149.0,94140.0,0.13383589]
[1734990216047,0.1264,94149.0,94140.0,0.11301889]
[1734990216444,0.1264,94149.0,94144.0,0.053181]
[1734990216838,0.1274,94149.0,94144.0,0.053181]
[1734990217351,0.01,94149.0,94144.0,0.053181]
[1734990217655,0.011,94149.0,94144.0,0.053181]
[1734990217845,0.004,94149.0,94144.0,0.053181]
[1734990218044,0.01,94149.0,94144.0,0.053181]
[1734990218565,0.012,94149.0,94144.0,0.001]
[1734990218760,0.012,94149.0,94145.0,0.053181]
[1734990219145,0.012,94149.0,94144.0,0.001]
[1734990219146,0.012,94149.0,94148.0,0.053179]
[1734990220852,0.004,94149.0,94148.0,0.001]
[1734990221156,0.00143224,94149.0,94148.0,0.054179]
[1734990221351,0.00643224,94149.0,94148.0,0.054179]
[1734990222054,0.00643224,94149.0,94148.0,0.001]
[1734990222257,0.28971124,94149.0,94148.0,0.001]
[1734990222853,0.23653224,94149.0,94148.0,0.001]
[1734990225065,0.28971124,94149.0,94148.0,0.001]
[1734990225250,0.053183,94141.0,94140.0,0.04402435]
[1734990225449,0.053184,94139.0,94128.0,0.05319]
[1734990225657,0.053184,94139.0,94124.0,0.3608]
[1734990225658,0.3608,94141.0,94133.0,0.413987]
[1734990225959,0.3608,94141.0,94133.0,0.053187]
[1734990226457,0.3628,94141.0,94133.0,0.053187]
[1734990226958,0.053186,94137.0,94133.0,0.03728026]
[1734990227257,0.3628,94141.0,94130.0,0.18835057]
[1734990227258,0.3668,94141.0,94130.0,0.18835057]
[1734990227561,0.3618,94141.0,94130.0,0.18835057]
[1734990227755,0.3638,94141.0,94130.0,0.18835057]
[1734990227955,0.3628,94141.0,94130.0,0.18835057]
[1734990228258,0.3608,94133.0,94124.0,0.25051481]
[1734990228559,0.3608,94125.0,94124.0,0.25051481]
[1734990228951,0.5922,94125.0,94124.0,0.25051481]
[1734990229655,0.5922,94125.0,94110.0,0.27731385]
[1734990229958,0.3608,94116.0,94115.0,0.053198]
[1734990231251,0.3608,94116.0,94115.0,0.059198]
[1734990233463,0.3608,94116.0,94115.0,0.058198]
[1734990234065,0.3608,94116.0,94115.0,0.060198]
[1734990235460,0.02376551,94146.0,94139.0,0.053184]
[1734990235659,0.22297857,94157.0,94145.0,0.3608]
[1734990235853,0.00064,94157.0,94154.0,0.339975]
[1734990236047,0.22233857,94160.0,94154.0,0.339975]
[1734990237060,0.22233857,94160.0,94154.0,0.39315]
[1734990237261,0.23133857,94160.0,94154.0,0.39415]
[1734990237462,0.23133857,94160.0,94154.0,0.001]
[1734990237768,0.009,94160.0,94154.0,0.001]
[1734990238356,0.014,94160.0,94154.0,0.001]
[1734990238864,0.014,94160.0,94159.0,0.053173]
[1734990240356,0.005,94160.0,94159.0,0.053173]
[1734990240564,0.015,94160.0,94159.0,0.055173]
[1734990240960,0.015,94160.0,94155.0,0.092473]
[1734990241149,0.015,94160.0,94159.0,0.053173]
[1734990243655,0.015,94160.0,94159.0,0.413973]
[1734990243967,0.053164,94175.0,94159.0,0.416973]
[1734990244165,0.053164,94174.0,94170.0,0.3608]
[1734990245570,0.055164,94174.0,94170.0,0.3608]
[1734990245954,0.002,94174.0,94170.0,0.2868]
[1734990248169,0.055164,94174.0,94161.0,0.053172]
[1734990248668,0.053167,94169.0,94159.0,0.3608]
[1734990248867,0.3608,94172.0,94159.0,0.3608]
[1734990249067,0.1194,94168.0,94159.0,0.3608]
[1734990249370,0.05317,94164.0,94161.0,0.001]
[1734990249763,0.05317,94164.0,94159.0,0.39945058]
[1734990249967,0.05317,94164.0,94159.0,0.39941058]
[1734990250359,0.05317,94164.0,94159.0,0.39841058]
[1734990250760,0.053172,94160.0,94159.0,0.03761058]
[1734990250964,0.3608,94164.0,94146.0,0.2868]
[1734990251166,0.3608,94153.0,94143.0,0.18850231]
[1734990251461,0.3608,94144.0,94143.0,0.18850231]
[1734990251661,0.3608,94144.0,94143.0,0.22053185]
[1734990251863,0.4794,94144.0,94143.0,0.22053185]
[1734990252064,0.4794,94144.0,94143.0,0.03202954]
[1734990252264,0.053185,94137.0,94133.0,0.18850231]
[1734990252474,0.3608,94136.0,94133.0,0.18850231]
[1734990252662,0.053187,94135.0,94133.0,0.18850231]
[1734990252974,0.167187,94135.0,94133.0,0.18850231]
[1734990253869,0.167187,94135.0,94132.0,0.03320344]
[1734990254072,0.167187,94135.0,94128.0,0.05319]
[1734990254576,0.053188,94133.0,94122.0,0.053194]
[1734990255865,0.053188,94133.0,94122.0,0.054194]
[1734990256561,0.053188,94133.0,94122.0,0.057194]
[1734990256976,0.053188,94132.0,94122.0,0.057194]
[1734990257271,0.05319,94130.0,94122.0,0.004]
[1734990257565,0.05319,94129.0,94122.0,0.004]
[1734990257770,0.053191,94127.0,94122.0,0.004]
[1734990257972,0.053193,94124.0,94122.0,0.03582748]
[1734990258271,0.1183,94123.0,94122.0,0.004]
[1734990258963,0.2404,94123.0,94122.0,0.004]
[1734990259177,0.2404,94123.0,94122.0,0.003]
[1734990259672,0.2404,94123.0,94122.0,0.001]
[1734990259868,0.2404,94123.0,94122.0,0.003]
[1734990260867,0.2404,94123.0,94107.0,0.01538888]
[1734990261181,0.2404,94123.0,94100.0,0.08881154]
[1734990261182,0.053198,94115.0,94108.0,0.053201]
[1734990261374,0.3608,94117.0,94108.0,0.053201]
[1734990261578,0.0532,94111.0,94100.0,0.12105106]
[1734990261875,0.0532,94111.0,94103.0,0.053204]
[1734990262077,0.3608,94117.0,94107.0,0.002]
[1734990262277,0.414002,94108.0,94107.0,0.002]
[1734990262664,0.053204,94104.0,94100.0,0.03223952]
[1734990262879,0.053204,94104.0,94100.0,0.004]
[1734990264279,0.3608,94108.0,94093.0,0.05321]
[1734990264467,0.053202,94107.0,94090.0,0.08881154]
[1734990264663,0.053205,94103.0,94091.0,0.053211]
[1734990264869,0.053207,94099.0,94091.0,0.053211]
[1734990265464,0.053207,94099.0,94093.0,0.001]
[1734990265663,0.413997,94117.0,94106.0,0.053203]
[1734990265872,0.41399,94128.0,94107.0,0.15682008]
[1734990266073,0.1208,94139.0,94127.0,0.3608]
[1734990266382,0.053184,94139.0,94125.0,0.3608]
[1734990266576,0.053181,94145.0,94131.0,0.053189]
[1734990266773,0.053178,94151.0,94140.0,0.053183]
[1734990266975,0.15841411,94154.0,94141.0,0.053183]
[1734990267172,0.15841411,94154.0,94142.0,0.053182]
[1734990267679,0.002,94145.0,94144.0,0.413981]
[1734990268278,0.002,94145.0,94144.0,0.3608]
[1734990268481,0.053177,94152.0,94144.0,0.3608]
[1734990268682,0.009,94154.0,94144.0,0.3608]
[1734990269075,0.009,94154.0,94152.0,0.3608]
[1734990269771,0.009,94154.0,94152.0,0.413976]
[1734990269772,0.003,94154.0,94152.0,0.413976]
[1734990269974,0.053165,94173.0,94161.0,0.053171]
[1734990270178,0.3608,94179.0,94162.0,0.413971]
[1734990270376,0.053165,94174.0,94162.0,0.053171]
[1734990271676,0.003,94174.0,94163.0,0.05317]
[1734990271883,0.003,94174.0,94160.0,0.44961154]
[1734990272083,0.009,94174.0,94160.0,0.44961154]
[1734990272378,0.009,94174.0,94172.0,0.053165]
[1734990272570,0.003,94174.0,94172.0,0.053165]
[1734990273085,0.053153,94195.0,94168.0,0.3608]
[1734990273272,0.053153,94195.0,94179.0,0.3608]
[1734990273472,0.05315,94201.0,94183.0,0.053159]
[1734990273678,0.2329,94207.0,94183.0,0.053159]
[1734990273982,0.2329,94207.0,94188.0,0.3608]
[1734990273983,0.15315,94200.0,94188.0,0.3608]
[1734990274175,0.053152,94197.0,94188.0,0.3608]
[1734990274376,0.053152,94197.0,94183.0,0.053159]
[1734990274986,0.053152,94197.0,94184.0,0.053158]
[1734990275375,0.3608,94199.0,94180.0,0.08881154]
[1734990275575,0.007,94197.0,94188.0,0.001]
[1734990275979,0.3608,94199.0,94183.0,0.001]
[1734990276179,0.3608,94199.0,94186.0,0.053157]
[1734990276180,0.012,94197.0,94186.0,0.053157]
[1734990276773,0.053153,94194.0,94185.0,0.053158]
[1734990276979,0.012,94197.0,94187.0,0.053157]
[1734990277176,0.007,94197.0,94195.0,0.413952]
[1734990277376,0.01278804,94200.0,94198.0,0.053151]
[1734990277578,0.00690397,94200.0,94198.0,0.053151]
[1734990278984,0.01390397,94200.0,94198.0,0.054151]
[1734990279489,0.01690397,94200.0,94198.0,0.09399373]
[1734990280383,0.01690397,94200.0,94198.0,0.04084273]
[1734990280974,0.01690397,94200.0,94195.0,0.32764273]
[1734990281188,0.01690397,94200.0,94195.0,0.03972925]
[1734990281384,0.01690397,94200.0,94193.0,0.053154]
[1734990281984,0.01690397,94200.0,94194.0,0.053153]
[1734990282389,0.01390397,94200.0,94194.0,0.053153]
[1734990282594,0.00890397,94200.0,94194.0,0.053153]
[1734990283486,0.00890397,94200.0,94190.0,0.04056412]
[1734990283680,0.00890397,94200.0,94190.0,0.053155]
[1734990284488,0.00890397,94200.0,94191.0,0.053154]
[1734990285694,0.00890397,94200.0,94188.0,0.27368952]
[1734990285889,0.00890397,94200.0,94188.0,0.25284352]
[1734990286099,0.00790397,94200.0,94188.0,0.25284352]
[1734990286691,0.00790397,94200.0,94193.0,0.053154]
[1734990286905,0.00790397,94200.0,94188.0,0.25284352]
[1734990287300,0.00790397,94200.0,94188.0,0.13804352]
[1734990287496,0.053154,94192.0,94188.0,0.04128952]
[1734990287701,0.053154,94192.0,94180.0,0.08881154]
[1734990288597,0.053151,94197.0,94184.0,0.053159]
[1734990288786,0.053152,94196.0,94189.0,0.08881154]
[1734990290101,0.054152,94196.0,94189.0,0.08881154]
[1734990290289,0.053153,94195.0,94189.0,0.08881154]
[1734990290494,0.053153,94194.0,94189.0,0.08881154]
[1734990290704,0.053153,94194.0,94180.0,0.18371099]
[1734990290904,0.053153,94194.0,94180.0,0.18271099]
[1734990291604,0.053153,94194.0,94181.0,0.05316]
[1734990291906,0.001,94195.0,94180.0,0.12954999]
[1734990292107,0.053156,94189.0,94180.0,0.12954999]
[1734990292494,0.053156,94189.0,94180.0,0.13054999]
[1734990293001,0.3608,94193.0,94180.0,0.13054999]
[1734990293193,0.3608,94193.0,94180.0,0.12954999]
[1734990293391,0.3608,94193.0,94180.0,0.13054999]
[1734990293611,0.053154,94192.0,94180.0,0.13054999]
[1734990293905,0.05316,94181.0,94180.0,0.13054999]
[1734990294103,0.3608,94193.0,94180.0,0.13054999]
[1734990294104,0.3608,94183.0,94180.0,0.04173845]
[1734990294405,0.413959,94183.0,94180.0,0.04173845]
[1734990294790,0.413959,94183.0,94180.0,0.04273845]
[1734990295300,0.05316,94181.0,94180.0,0.04173845]
[1734990296099,0.05316,94181.0,94171.0,0.08881154]
[1734990296500,0.05316,94181.0,94173.0,0.053165]
[1734990297009,0.3608,94193.0,94175.0,0.3608]
[1734990297202,0.053154,94192.0,94183.0,0.08881154]
[1734990299505,0.053155,94191.0,94183.0,0.08881154]
[1734990300304,0.053156,94189.0,94183.0,0.08881154]
[1734990301119,0.053156,94189.0,94183.0,0.20127789]
[1734990302413,0.3608,94193.0,94185.0,0.18646635]
[1734990302718,0.413954,94193.0,94185.0,0.18646635]
[1734990303511,0.414954,94193.0,94185.0,0.18646635]
[1734990304114,0.414954,94193.0,94187.0,0.18646635]
[1734990304716,0.3608,94192.0,94187.0,0.18646635]
[1734990305016,0.413954,94192.0,94187.0,0.18646635]
[1734990305210,0.3608,94192.0,94187.0,0.18646635]
[1734990305414,0.3608,94192.0,94186.0,0.053158]
[1734990305415,0.3608,94192.0,94186.0,0.23962435]
[1734990305716,0.3608,94192.0,94186.0,0.18646635]
[1734990305909,0.3608,94192.0,94186.0,0.11246635]
[1734990306108,0.3618,94192.0,94186.0,0.11246635]
[1734990306711,0.3618,94192.0,94184.0,0.03982246]
[1734990306915,0.3618,94192.0,94183.0,0.2486218]
[1734990307111,0.001,94192.0,94186.0,0.3608]
[1734990307317,0.001,94192.0,94191.0,0.053155]
[1734990307511,0.001,94192.0,94187.0,0.1138]
[1734990307813,0.003,94192.0,94188.0,0.053156]
[1734990308314,0.003,94192.0,94189.0,0.2486218]
[1734990309416,0.002,94192.0,94188.0,0.2486218]
[1734990309614,0.003,94192.0,94188.0,0.2486218]
[1734990310714,0.003,94192.0,94189.0,0.3017768]
[1734990311017,0.002,94192.0,94189.0,0.2277768]
[1734990311212,0.003,94192.0,94189.0,0.2277768]
[1734990311819,0.003,94192.0,94189.0,0.2809328]
[1734990312117,0.003,94192.0,94189.0,0.053156]
[1734990312813,0.003,94192.0,94186.0,0.31077725]
[1734990313318,0.003,94192.0,94186.0,0.35051045]
[1734990314312,0.053157,94188.0,94186.0,0.35051045]
[1734990314909,0.053157,94188.0,94186.0,0.0397332]
[1734990315109,0.222,94187.0,94182.0,0.31077725]
[1734990315307,0.053158,94186.0,94182.0,0.36236812]
[1734990315913,0.053159,94184.0,94182.0,0.36236812]
[1734990316317,0.053159,94184.0,94182.0,0.13047725]
[1734990316506,0.053159,94184.0,94153.0,0.4972436]
[1734990316507,0.053165,94173.0,94172.0,0.36359633]
[1734990316713,0.413965,94173.0,94172.0,0.36359633]
[1734990317514,0.3608,94173.0,94172.0,0.36359633]
[1734990317716,0.3608,94173.0,94172.0,0.36759633]
[1734990317924,0.3608,94173.0,94172.0,0.05503874]
[1734990318116,0.3608,94173.0,94172.0,0.05703874]
[1734990320614,0.3608,94173.0,94172.0,0.05303874]
[1734990320821,0.3608,94173.0,94172.0,0.05503874]
[1734990321130,0.3608,94173.0,94172.0,0.05403874]
[1734990323721,0.4769,94173.0,94172.0,0.05403874]
[1734990324425,0.57239088,94173.0,94172.0,0.05403874]
[1734990325426,0.57239088,94173.0,94150.0,0.1193]
[1734990325628,0.053182,94143.0,94130.0,0.08881154]
[1734990325830,0.053182,94143.0,94128.0,0.43612815]
[1734990325831,0.3608,94142.0,94138.0,0.3729327]
[1734990326124,0.053184,94139.0,94138.0,0.3729327]
[1734990326531,0.053191,94127.0,94126.0,0.05008251]
[1734990326727,0.413991,94127.0,94125.0,0.43612815]
[1734990326929,0.413991,94127.0,94125.0,0.43508815]
[1734990327620,0.053194,94121.0,94120.0,0.05149606]
[1734990327827,0.053197,94117.0,94111.0,0.053199]
[1734990328025,0.3608,94126.0,94111.0,0.053199]
[1734990328026,0.3608,94114.0,94111.0,0.053199]
[1734990328536,0.3608,94114.0,94103.0,0.00104]
[1734990328833,0.053201,94110.0,94107.0,0.053202]
[1734990329335,0.3608,94114.0,94101.0,0.053206]
[1734990329536,0.053202,94108.0,94101.0,0.053206]
[1734990329938,0.3608,94106.0,94101.0,0.053206]
[1734990330439,0.08881154,94111.0,94098.0,0.16589702]
[1734990330632,0.053204,94105.0,94098.0,0.16589702]
[1734990330835,0.053204,94105.0,94101.0,0.005]
[1734990331029,0.3608,94105.0,94101.0,0.009]
[1734990331237,0.053205,94102.0,94101.0,0.009]
[1734990331441,0.053206,94101.0,94098.0,0.05119702]
[1734990331737,0.053206,94101.0,94098.0,0.003]
[1734990332331,0.3608,94105.0,94098.0,0.003]
[1734990332527,0.3608,94105.0,94099.0,0.053206]
[1734990332932,0.053194,94122.0,94104.0,0.3608]
[1734990333239,0.3608,94129.0,94110.0,0.08881154]
[1734990333441,0.053195,94120.0,94113.0,0.3608]
[1734990334229,0.053195,94120.0,94114.0,0.1068]
[1734990334539,0.001,94122.0,94114.0,0.1068]
[1734990335036,0.053191,94127.0,94114.0,0.1068]
[1734990335237,0.053191,94127.0,94117.0,0.08881154]
[1734990335629,0.3608,94129.0,94117.0,0.08881154]
[1734990335828,0.3608,94129.0,94122.0,0.3608]
[1734990336039,0.3608,94147.0,94123.0,0.1172]
[1734990336232,0.053182,94143.0,94138.0,0.3608]
[1734990337647,0.053182,94143.0,94138.0,0.3618]
[1734990337843,0.053178,94150.0,94138.0,0.003]
[1734990338137,0.053178,94150.0,94140.0,0.08881154]
[1734990339037,0.053179,94148.0,94139.0,0.1181]
[1734990340644,0.053179,94148.0,94139.0,0.1221]
[1734990341046,0.3608,94154.0,94143.0,0.3608]
[1734990341347,0.3608,94174.0,94158.0,0.053173]
[1734990341644,0.3608,94174.0,94160.0,0.44961154]
[1734990341836,0.3608,94174.0,94161.0,0.053172]
[1734990342540,0.3608,94174.0,94166.0,0.053168]
[1734990342842,0.05316,94182.0,94160.0,0.45081154]
[1734990342843,0.05316,94182.0,94169.0,0.3608]
[1734990343041,0.004,94174.0,94170.0,0.08881154]
[1734990343241,0.004,94174.0,94169.0,0.3608]
[1734990343446,0.004,94174.0,94169.0,0.413967]
[1734990343651,0.008,94174.0,94169.0,0.413967]
[1734990344139,0.008,94174.0,94169.0,0.46833055]
[1734990344440,0.004,94174.0,94169.0,0.47033055]
[1734990345144,0.05316,94182.0,94170.0,0.004]
[1734990345736,0.3608,94186.0,94172.0,0.08881154]
[1734990345932,0.3608,94186.0,94172.0,0.14197654]
[1734990346541,0.3608,94186.0,94179.0,0.053161]
[1734990346950,0.053153,94194.0,94179.0,0.053161]
[1734990347143,0.053153,94194.0,94181.0,0.3608]
[1734990347447,0.3608,94195.0,94181.0,0.3608]
[1734990347448,0.053154,94193.0,94181.0,0.3608]
[1734990347642,0.3608,94195.0,94181.0,0.3608]
[1734990347643,0.053155,94192.0,94181.0,0.3608]
[1734990348356,0.053156,94190.0,94181.0,0.3608]
[1734990349046,0.001,94194.0,94183.0,0.053159]
[1734990349443,0.3608,94195.0,94183.0,0.053159]
[1734990349644,0.001,94190.0,94183.0,0.053159]
[1734990350038,0.001,94192.0,94183.0,0.053159]
[1734990350451,0.002,94194.0,94183.0,0.053159]
[1734990350642,0.003,94194.0,94181.0,0.3608]
[1734990350845,0.003,94194.0,94192.0,0.053154]
[1734990351745,0.001,94194.0,94192.0,0.053154]
[1734990352343,0.3608,94207.0,94191.0,0.1097]
[1734990352344,0.3608,94207.0,94199.0,0.05315]
[1734990353454,0.01090397,94200.0,94199.0,0.05415]
[1734990353752,0.01490397,94200.0,94199.0,0.05415]
[1734990355955,0.01490397,94200.0,94191.0,0.08985]